bitfinex/quotes_SOLUSD_20220119
["timestamp","ask_amount","ask_price","bid_price","bid_amount"]
[1642596380097,2.03782593,135.89,135.86,6.31430001]
[1642596380594,2.03782593,135.88,135.86,6.31430001]
[1642596381298,2.03782593,135.89,135.86,6.31430001]
[1642596381501,2.03782593,135.91,135.87,86.843]
[1642596381696,2.03782593,135.92,135.88,43.51872662]
[1642596381897,2.03782593,135.93,135.88,43.51872662]
[1642596382097,2.03782593,135.92,135.88,43.51872662]
[1642596382299,2.03782593,135.93,135.88,54.55612662]
[1642596385197,2.03782593,135.93,135.88,127.91612662]
[1642596385998,2.03782593,135.94,135.88,127.91612662]
[1642596386597,2.03782593,135.94,135.89,10.54]
[1642596386800,2.03782593,135.94,135.9,0.25]
[1642596386998,2.03782593,135.94,135.91,60.53992545]
[1642596387197,2.03782593,135.94,135.92,6.31430001]
[1642596387397,2.03782593,135.95,135.92,6.06430001]
[1642596387597,2.03782593,135.94,135.92,6.06430001]
[1642596389201,2.03782593,135.94,135.93,0.25]
[1642596391102,2.03782593,135.94,135.92,17.10020001]
[1642596391303,8.28440964,135.97,135.93,0.25]
[1642596391502,8.28440964,135.97,135.92,11.0359]
[1642596391905,4.78440964,135.97,135.92,11.0359]
[1642596392909,4.78440964,135.97,135.91,11.0366]
[1642596393108,4.78440964,135.97,135.91,11.2866]
[1642596393305,0.25,135.96,135.91,11.0366]
[1642596393508,4.15225411,135.97,135.91,11.0366]
[1642596393705,0.25,135.96,135.89,10.54]
[1642596393906,0.25,135.96,135.9,0.25]
[1642596394509,11.0377,135.97,135.9,47.13707319]
[1642596394807,25.9069,135.98,135.9,47.13707319]
[1642596395407,4.15211225,135.97,135.9,47.13707319]
[1642596395808,25.9069,135.98,135.9,47.13707319]
[1642596396810,4.15172,135.97,135.9,47.13707319]
[1642596397111,25.9069,135.98,135.9,47.13707319]
[1642596398610,25.9069,135.98,135.9,46.88707319]
[1642596398812,25.9069,135.98,135.9,120.24707319]
[1642596399914,25.9069,135.98,135.89,10.54]
[1642596400115,0.25,135.97,135.87,13.483]
[1642596400817,0.25,135.97,135.88,49.3082204]
[1642596401019,11.2872,135.97,135.88,49.3082204]
[1642596401217,11.2872,135.97,135.89,0.25]
[1642596401820,12.4372,135.97,135.89,0.25]
[1642596402225,12.4372,135.97,135.88,49.3082204]
[1642596402421,4.15373341,135.96,135.89,0.25]
[1642596402622,12.4372,135.97,135.89,11.2882]
[1642596402824,4.15417908,135.96,135.89,11.2882]
[1642596403121,1.15,135.97,135.89,11.2882]
[1642596403621,1.15,135.97,135.9,73.36]
[1642596403821,2.943,135.98,135.92,11.0344]
[1642596404223,2.943,135.98,135.87,13.483]
[1642596404423,4.15561136,135.97,135.88,0.25]
[1642596404624,4.15561136,135.97,135.88,10.79]
[1642596405026,11.2885,135.96,135.88,21.829]
[1642596405446,11.2885,135.96,135.88,10.79]
[1642596405648,4.15635222,135.95,135.87,2.943]
[1642596405849,88.05635222,135.95,135.87,2.943]
[1642596406050,88.05635222,135.95,135.81,10.54]
[1642596406051,6.18024612,135.94,135.79,10.54]
[1642596406248,15.19805222,135.93,135.79,80.4]
[1642596406548,2.07968162,135.88,135.79,80.4]
[1642596406747,2.07968162,135.88,135.8,40.00452778]
[1642596407351,2.07968162,135.88,135.81,11.0444]
[1642596408149,2.07968162,135.89,135.82,0.25]
[1642596408548,2.07968162,135.88,135.81,0.25]
[1642596408748,2.07968162,135.89,135.81,73.61]
[1642596408949,13.12318162,135.89,135.81,11.2945]
[1642596409148,2.32968162,135.88,135.81,11.2945]
[1642596409349,2.07968162,135.88,135.81,11.2945]
[1642596409750,0.25,135.87,135.81,11.0445]
[1642596409953,3.22968162,135.88,135.81,11.0445]
[1642596410850,2.07968162,135.88,135.81,11.0445]
[1642596411051,13.12468162,135.88,135.8,40.00452778]
[1642596411251,2.32968162,135.87,135.81,0.25]
[1642596411651,2.07968162,135.86,135.81,0.25]
[1642596411956,2.32968162,135.87,135.77,10.54]
[1642596412154,11.0492,135.83,135.75,11.0488]
[1642596412352,11.0492,135.83,135.74,10.54]
[1642596412558,0.25,135.82,135.74,10.54]
[1642596412773,0.25,135.82,135.75,36.39977234]
[1642596412955,1.15,135.83,135.75,36.39977234]
[1642596413156,11.0503,135.81,135.75,36.39977234]
[1642596413357,1.15,135.83,135.75,36.39977234]
[1642596413556,1.15,135.83,135.76,0.25]
[1642596413755,24.7809,135.84,135.76,0.25]
[1642596414458,11.0491,135.83,135.76,11.2983]
[1642596415458,24.7809,135.84,135.76,11.2983]
[1642596415662,35.8286,135.84,135.76,11.2983]
[1642596418065,35.8286,135.84,135.76,11.0483]
[1642596418264,0.25,135.83,135.76,11.0483]
[1642596418663,35.8286,135.84,135.76,11.0483]
[1642596419464,35.8286,135.84,135.77,0.25]
[1642596420266,0.25,135.83,135.77,0.25]
[1642596420469,11.2985,135.83,135.77,0.25]
[1642596421167,11.2985,135.83,135.76,0.25]
[1642596421567,11.2985,135.83,135.74,0.25]
[1642596421769,11.2985,135.83,135.73,0.25]
[1642596422068,11.0502,135.81,135.73,0.25]
[1642596422269,11.0502,135.81,135.74,11.0504]
[1642596422670,11.0502,135.81,135.75,0.25]
[1642596424874,23.5501,135.82,135.75,51.8954522]
[1642596425075,23.5501,135.82,135.75,11.0495]
[1642596425274,23.5501,135.82,135.76,0.25]
[1642596426173,23.5501,135.82,135.74,0.25]
[1642596426574,23.5501,135.82,135.76,11.0488]
[1642596426776,23.5501,135.82,135.77,0.25]
[1642596426979,23.5501,135.82,135.76,40.01377264]
[1642596427177,23.5501,135.82,135.77,0.25]
[1642596427576,2.07968162,135.86,135.77,11.2976]
[1642596427777,0.25,135.85,135.77,11.2976]
[1642596428577,11.2968,135.85,135.77,11.2976]
[1642596430081,13.37648162,135.85,135.77,11.2976]
[1642596430480,13.37648162,135.85,135.77,0.25]
[1642596432111,14.52648162,135.85,135.77,0.25]
[1642596432713,14.52648162,135.85,135.77,11.298]
[1642596432914,14.27648162,135.85,135.78,37.74190351]
[1642596433114,3.22968162,135.85,135.78,117.67090351]
[1642596433321,1.15,135.85,135.79,0.25]
[1642596433513,1.15,135.85,135.79,10.79]
[1642596433915,1.15,135.85,135.8,11.0433]
[1642596434114,2.07968162,135.88,135.81,36.28730041]
[1642596434315,2.07968162,135.88,135.81,36.53730041]
[1642596434515,2.07968162,135.89,135.81,36.53730041]
[1642596434715,2.07968162,135.89,135.82,10.54]
[1642596434915,2.07968162,135.9,135.83,11.0426]
[1642596435123,2.07968162,135.9,135.84,42.50162491]
[1642596435317,2.07968162,135.91,135.85,0.25]
[1642596435918,2.07968162,135.91,135.85,11.2883]
[1642596436415,2.07968162,135.92,135.85,11.2883]
[1642596437817,2.07968162,135.93,135.85,11.2883]
[1642596438717,2.07968162,135.93,135.85,21.8283]
[1642596440819,2.07968162,135.93,135.88,11.0381]
[1642596441621,50.55068162,135.94,135.88,11.0381]
[1642596444623,2.07968162,135.93,135.88,11.0381]
[1642596445022,48.471,135.94,135.88,11.0381]
[1642596445023,50.55068162,135.94,135.88,56.56166721]
[1642596445423,61.59028162,135.94,135.88,56.56166721]
[1642596445925,61.59028162,135.94,135.88,11.0381]
[1642596450028,2.07968162,135.94,135.88,11.0381]
[1642596450229,2.07968162,135.95,135.89,0.25]
[1642596450429,2.07968162,135.95,135.9,63.39587013]
[1642596450632,2.943,135.98,135.9,64.676672]
[1642596450832,2.943,135.98,135.91,0.25]
[1642596451330,2.943,135.98,135.91,73.61]
[1642596451538,5.02268162,135.98,135.91,73.61]
[1642596451930,2.943,135.98,135.91,73.61]
[1642596452533,2.943,135.98,135.93,11.0342]
[1642596452832,2.943,135.98,135.94,0.25]
[1642596454433,1.943,135.98,135.94,11.2845]
[1642596456637,1.943,135.98,135.95,46.22299751]
[1642596456841,1.943,135.98,135.96,6.06430001]
[1642596462773,4.02268162,135.98,135.96,6.06430001]
[1642596463572,2.07968162,135.97,135.96,6.06430001]
[1642596464174,2.07968162,135.97,135.89,36.7858]
[1642596464474,2.07968162,135.96,135.9,10.54]
[1642596464673,2.07968162,135.95,135.88,10.54]
[1642596465271,2.07968162,135.94,135.88,10.54]
[1642596465473,11.0409,135.93,135.88,10.54]
[1642596465671,2.07968162,135.94,135.88,10.54]
[1642596466177,2.07968162,135.94,135.89,0.25]
[1642596466373,2.07968162,135.94,135.86,0.25]
[1642596466573,2.07968162,135.93,135.86,0.25]
[1642596467573,2.07968162,135.93,135.87,11.0401]
[1642596467773,2.07968162,135.93,135.88,0.25]
[1642596468373,2.07968162,135.94,135.88,0.25]
[1642596468975,2.07968162,135.93,135.87,0.25]
[1642596469473,2.07968162,135.93,135.88,11.0393]
[1642596469675,2.07968162,135.93,135.89,0.25]
[1642596470474,2.07968162,135.94,135.89,11.2882]
[1642596470674,2.07968162,135.94,135.9,41.09648464]
[1642596471975,2.07968162,135.95,135.91,11.0367]
[1642596474177,2.07968162,135.95,135.92,0.25]
[1642596474382,2.07968162,135.96,135.92,0.25]
[1642596474579,4.02268162,135.98,135.93,11.0331]
[1642596474780,4.02268162,135.98,135.94,0.25]
[1642596475480,1.943,135.98,135.94,0.25]
[1642596475986,1.943,135.98,135.93,73.36]
[1642596476479,4.02268162,135.98,135.95,11.0331]
[1642596476681,6.06439994,135.97,135.95,46.65872266]
[1642596477178,6.06439994,135.97,135.95,120.01872266]
[1642596477380,3.03219997,135.97,135.95,84.3931]
[1642596477582,1.943,135.98,135.95,84.3931]
[1642596477983,1.943,135.98,135.96,11.2828]
[1642596478384,1.943,135.98,135.96,124.88833803]
[1642596486102,2.07968162,136.0,135.97,94.9292]
[1642596486299,2.07968162,136.0,135.98,0.25]
[1642596487300,2.07968162,136.0,135.99,11.0293]
[1642596487809,2.07968162,136.0,135.99,11.2793]
[1642596490911,2.07968162,136.0,135.99,0.25]
[1642596491112,2.07968162,136.0,135.97,21.5713]
[1642596491312,2.07968162,136.0,135.97,11.0313]
[1642596491520,2.07968162,136.0,135.98,0.25]
[1642596492422,2.07968162,136.0,135.98,11.2811]
[1642596495925,25.83418162,136.05,135.98,11.2811]
[1642596496324,23.7545,136.05,135.98,11.2811]
[1642596496525,25.83418162,136.05,135.98,11.2811]
[1642596500228,23.7545,136.05,135.98,11.2811]
[1642596501629,25.83418162,136.05,135.98,11.2811]
[1642596501829,25.83418162,136.05,135.98,11.0311]
[1642596502330,2.07968162,136.04,135.98,11.0311]
[1642596504432,2.07968162,136.03,135.98,11.0311]
[1642596504630,2.07968162,136.03,135.99,0.25]
[1642596505636,2.07968162,136.03,135.99,11.2804]
[1642596505833,25.83418162,136.05,135.99,11.0304]
[1642596506032,25.83418162,136.05,136.0,0.25]
[1642596506235,23.7545,136.05,136.0,0.25]
[1642596506533,25.83418162,136.05,136.0,0.25]
[1642596507136,25.83418162,136.05,136.0,11.0289]
[1642596507534,25.83418162,136.05,136.01,0.25]
[1642596508338,25.83418162,136.05,135.97,120.6627]
[1642596508535,25.83418162,136.05,135.98,0.25]
[1642596508736,25.83418162,136.05,136.0,11.0296]
[1642596509436,2.07968162,136.04,135.98,0.25]
[1642596509637,2.07968162,136.03,135.98,0.25]
[1642596509837,2.07968162,136.03,135.93,10.54]
[1642596510237,2.07968162,136.03,135.94,40.50248415]
[1642596510437,2.07968162,136.02,135.96,11.0329]
[1642596511840,2.07968162,136.02,135.97,0.25]
[1642596512041,13.11348162,136.02,135.97,0.25]
[1642596512240,2.07968162,136.01,135.94,11.0338]
[1642596512441,2.07968162,136.0,135.88,25.58983498]
[1642596512641,2.07968162,135.99,135.89,10.54]
[1642596512840,2.07968162,135.98,135.89,10.54]
[1642596513244,0.25,135.97,135.89,10.54]
[1642596513642,2.32968162,135.97,135.9,0.25]
[1642596513841,0.25,135.97,135.9,0.25]
[1642596514042,2.07968162,135.98,135.9,11.287]
[1642596514251,2.07968162,135.99,135.91,11.82310522]
[1642596514442,2.07968162,136.0,135.91,11.82310522]
[1642596514641,2.07968162,136.01,135.93,47.03492507]
[1642596514842,2.07968162,136.02,135.93,57.57492507]
[1642596515042,2.07968162,136.02,135.94,7.53310522]
[1642596515244,22.5243,136.04,135.95,83.9]
[1642596515245,2.07968162,136.03,135.95,83.9]
[1642596515441,2.07968162,136.04,135.95,85.18310522]
[1642596515641,2.07968162,136.04,135.96,0.25]
[1642596515845,2.07968162,136.05,135.97,10.54]
[1642596516044,2.07968162,136.05,135.98,46.04069928]
[1642596516344,2.07968162,136.05,136.0,11.0285]
[1642596516742,2.07968162,136.05,136.01,0.25]
[1642596517744,2.07968162,136.05,135.99,0.25]
[1642596518547,2.07968162,136.05,136.01,11.0285]
[1642596520248,2.07968162,136.06,136.03,11.0269]
[1642596520448,2.07968162,136.06,136.03,50.10987886]
[1642596520651,2.07968162,136.07,136.04,0.25]
[1642596522450,2.07968162,136.07,136.04,11.2764]
[1642596523353,2.07968162,136.08,136.04,11.2764]
[1642596526757,2.07968162,136.09,136.04,11.2764]
[1642596526955,2.07968162,136.1,136.04,21.8164]
[1642596528356,2.07968162,136.1,136.04,21.5664]
[1642596528559,2.07968162,136.1,136.02,11.0273]
[1642596528758,2.32968162,136.09,136.02,11.0273]
[1642596529057,2.07968162,136.07,136.02,11.0273]
[1642596530060,2.07968162,136.07,136.03,0.25]
[1642596531262,2.07968162,136.07,136.02,11.0273]
[1642596531661,2.07968162,136.06,136.02,11.0273]
[1642596532261,2.07968162,136.06,136.01,11.0281]
[1642596533164,2.07968162,136.06,136.02,0.25]
[1642596533364,2.07968162,136.07,136.02,11.0267]
[1642596533764,2.07968162,136.07,136.03,0.25]
[1642596539276,2.07968162,136.07,136.04,113.05833195]
[1642596539475,2.07968162,136.1,136.04,113.05833195]
[1642596539676,2.07968162,136.1,136.05,0.25]
[1642596540300,2.07968162,136.1,136.05,11.2741]
[1642596542600,2.07968162,136.1,136.04,11.0261]
[1642596542899,2.07968162,136.09,136.04,11.0261]
[1642596543903,2.07968162,136.08,136.04,11.0261]
[1642596544604,3.05773157,136.08,136.04,11.0261]
[1642596545005,2.07968162,136.07,136.04,11.0261]
[1642596546909,2.07968162,136.07,136.03,11.0269]
[1642596547107,0.97804995,136.08,136.0,36.7547]
[1642596547108,2.07968162,136.06,136.0,36.7547]
[1642596547307,2.07968162,136.06,135.98,97.0141]
[1642596547508,2.07968162,136.05,135.98,73.36]
[1642596547709,2.07968162,136.05,135.99,45.65646024]
[1642596547907,2.07968162,136.05,135.98,73.36]
[1642596548108,2.07968162,136.05,135.99,0.25]
[1642596548511,2.07968162,136.05,136.01,11.0275]
[1642596550711,2.07968162,136.04,136.01,11.0275]
[1642596550912,2.07968162,136.04,136.0,11.0287]
[1642596551513,2.07968162,136.05,136.0,11.0287]
[1642596551710,2.07968162,136.04,135.99,0.25]
[1642596551911,2.07968162,136.04,135.97,10.54]
[1642596552210,22.5145,136.06,135.94,98.2467]
[1642596552211,2.07968162,136.02,135.94,35.4267]
[1642596552612,2.07968162,136.01,135.94,35.4267]
[1642596552822,2.07968162,136.01,135.94,10.54]
[1642596553015,2.07968162,136.01,135.95,11.0328]
[1642596553214,2.07968162,136.01,135.96,0.25]
[1642596553814,13.11348162,136.01,135.96,0.25]
[1642596554413,13.11348162,136.01,135.94,0.25]
[1642596554816,13.11348162,136.01,135.93,0.25]
[1642596555416,13.11348162,136.01,135.93,11.2844]
[1642596556716,0.25,136.0,135.93,0.25]
[1642596556915,11.0365,135.98,135.93,0.25]
[1642596557117,11.0365,135.98,135.91,0.25]
[1642596557516,12.1865,135.98,135.91,0.25]
[1642596557716,12.1865,135.98,135.91,45.98484933]
[1642596557915,1.15,135.98,135.91,130.38084933]
[1642596558117,1.15,135.98,135.91,11.036]
[1642596558519,27.28868162,136.0,135.91,11.036]
[1642596558717,2.07968162,136.01,135.91,11.036]
[1642596558921,2.07968162,136.01,135.91,12.3235407]
[1642596559119,2.07968162,136.03,135.95,11.0297]
[1642596559317,2.07968162,136.03,135.92,58.01651772]
[1642596559318,2.07968162,136.04,135.96,0.25]
[1642596559517,2.07968162,136.04,135.94,10.54]
[1642596559818,2.07968162,136.04,135.95,0.25]
[1642596560017,49.21238162,136.05,135.95,6.25]
[1642596560221,2.07968162,136.04,135.95,6.25]
[1642596560421,47.1327,136.05,135.95,6.25]
[1642596560422,49.21238162,136.05,135.98,11.0299]
[1642596560622,2.07968162,136.04,135.98,50.43834939]
[1642596560821,49.21238162,136.05,135.99,0.25]
[1642596561624,49.21238162,136.05,135.99,11.2802]
[1642596563626,0.25,136.04,135.98,11.031]
[1642596563825,12.86968162,136.04,135.9,83.9]
[1642596564026,75.43968162,136.03,135.9,10.54]
[1642596564227,2.07968162,136.01,135.9,10.54]
[1642596564426,21.33293365,136.13,136.11,14.86]
[1642596564626,21.33293365,136.13,136.09,507.71542895]
[1642596564627,4.14661542,136.12,136.09,478.53397299]
[1642596565027,36.7442,136.21,136.1,10.54]
[1642596565226,8.29011449,136.2,136.1,10.54]
[1642596565428,4.14470775,136.2,136.11,0.25]
[1642596565626,11.0202,136.21,136.11,52.23466339]
[1642596565926,4.14470775,136.2,136.11,62.77466339]
[1642596566126,16.18923567,136.2,136.11,62.77466339]
[1642596567150,16.18923567,136.2,136.11,21.5606]
[1642596567350,16.18923567,136.2,136.11,10.54]
[1642596567852,0.25,136.19,136.11,10.54]
[1642596568352,0.25,136.19,136.12,0.25]
[1642596568550,0.25,136.19,136.12,11.2698]
[1642596569650,1.00122758,136.18,136.12,11.2698]
[1642596569851,38.17118274,136.17,136.12,11.2698]
[1642596571552,38.17118274,136.17,136.13,10.54]
[1642596571955,1.00122758,136.18,136.13,21.5587]
[1642596573253,1.00122758,136.18,136.14,0.25]
[1642596573453,1.00122758,136.18,136.15,21.556]
[1642596574055,1.00122758,136.18,136.16,0.25]
[1642596574255,1.00122758,136.18,136.17,10.54]
[1642596574658,2.44126657,136.24,136.17,10.79]
[1642596574958,2.44126657,136.24,136.17,10.54]
[1642596575460,0.25,136.23,136.17,21.5543]
[1642596579362,0.25,136.23,136.17,10.54]
[1642596579866,1.0104891,136.22,136.17,10.54]
[1642596580264,14.43449906,136.21,136.17,10.54]
[1642596583571,14.43449906,136.21,136.17,21.5556]
[1642596583971,14.43449906,136.21,136.17,10.54]
[1642596584574,14.43449906,136.21,136.14,10.54]
[1642596584771,14.43449906,136.21,136.08,131.69]
[1642596584772,1.00585902,136.2,136.1,10.54]
[1642596584970,1.25585902,136.2,136.1,10.54]
[1642596585470,1.25585902,136.2,136.11,40.96450801]
[1642596585870,1.00585902,136.2,136.12,10.54]
[1642596586271,1.00585902,136.2,136.13,0.25]
[1642596586471,1.00585902,136.2,136.14,10.54]
[1642596586971,1.00585902,136.2,136.15,53.61175462]
[1642596587173,1.00585902,136.2,136.16,10.54]
[1642596587572,1.00585902,136.2,136.17,0.25]
[1642596587772,1.00585902,136.2,136.18,10.54]
[1642596588572,3.03219997,136.19,136.18,10.54]
[1642596589580,4.03574344,136.19,136.18,10.54]
[1642596590179,1.00354347,136.19,136.18,10.54]
[1642596590982,4.03574344,136.19,136.18,10.54]
[1642596591988,3.53574344,136.19,136.18,10.54]
[1642596593507,3.53574344,136.19,136.14,10.54]
[1642596593708,3.53574344,136.19,136.15,0.25]
[1642596593909,3.53574344,136.19,136.14,10.54]
[1642596594308,37.97933476,136.18,136.14,10.54]
[1642596594510,37.97933476,136.18,136.11,33.8004]
[1642596594711,37.97933476,136.18,136.11,10.54]
[1642596596010,37.97933476,136.18,136.11,21.5606]
[1642596596210,37.97933476,136.18,136.12,0.25]
[1642596597014,37.97933476,136.18,136.11,21.5606]
[1642596597213,37.97933476,136.18,136.12,0.25]
[1642596597612,3.83538164,136.19,136.12,11.2697]
[1642596597814,11.019,136.22,136.13,10.54]
[1642596598014,4.1530341,136.21,136.13,10.54]
[1642596598214,4.1530341,136.21,136.14,0.25]
[1642596598416,4.1530341,136.21,136.14,10.79]
[1642596598718,38.4627557,136.2,136.14,10.79]
[1642596602322,0.25,136.19,136.11,11.0199]
[1642596602522,11.2713,136.19,136.09,11.0216]
[1642596602721,3.29308221,136.17,136.09,11.0216]
[1642596603021,3.29308221,136.17,136.07,48.1445]
[1642596603422,76.65308221,136.17,136.07,48.1445]
[1642596603627,0.25,136.16,136.06,10.54]
[1642596603821,0.25,136.16,136.08,11.0231]
[1642596604050,76.65308221,136.17,136.08,11.0231]
[1642596604925,11.0237,136.16,136.09,0.25]
[1642596605128,11.0237,136.16,136.07,11.2738]
[1642596607625,3.29308221,136.17,136.07,11.2738]
[1642596607830,0.25,136.16,136.07,59.53117284]
[1642596608124,3.29308221,136.17,136.1,11.0204]
[1642596608324,3.29308221,136.17,136.1,58.02434826]
[1642596608528,22.8306,136.2,136.11,0.25]
[1642596608828,11.0196,136.21,136.11,0.25]
[1642596609424,11.0196,136.21,136.12,11.0194]
[1642596609625,40.74893753,136.2,136.12,11.0194]
[1642596609825,40.74893753,136.2,136.13,0.25]
[1642596610430,51.76933753,136.2,136.13,0.25]
[1642596610728,0.25,136.19,136.11,11.2707]
[1642596611127,0.25,136.19,136.11,0.25]
[1642596612528,11.2712,136.19,136.11,0.25]
[1642596612727,0.25,136.19,136.11,0.25]
[1642596612927,0.25,136.19,136.11,10.79]
[1642596613131,0.25,136.19,136.11,10.54]
[1642596613329,0.25,136.19,136.12,0.25]
[1642596613528,0.25,136.19,136.11,11.0204]
[1642596614038,0.25,136.19,136.1,0.25]
[1642596614633,0.25,136.19,136.09,33.8614]
[1642596615231,11.2713,136.19,136.09,10.54]
[1642596615432,11.2713,136.19,136.05,10.54]
[1642596615634,24.8992,136.18,136.05,10.54]
[1642596615830,74.36690038,136.17,136.05,10.54]
[1642596616030,78.76647629,136.17,136.05,10.54]
[1642596616231,4.14957591,136.16,136.05,10.54]
[1642596616432,73.36,136.13,136.05,10.54]
[1642596616631,73.36,136.13,136.04,11.0256]
[1642596616833,0.25,136.12,136.02,10.54]
[1642596617034,0.25,136.12,135.99,47.0124]
[1642596617233,73.36,136.11,135.99,47.0124]
[1642596617434,11.0299,136.09,136.0,11.0295]
[1642596617635,11.0299,136.09,136.0,21.5695]
[1642596617834,1.462867,136.08,136.0,21.5695]
[1642596618241,1.462867,136.08,136.01,0.25]
[1642596623643,0.25,136.07,136.0,11.0295]
[1642596624044,1.462867,136.08,136.01,0.25]
[1642596624444,1.462867,136.08,136.01,11.2787]
[1642596625146,1.462867,136.08,135.99,47.0124]
[1642596625147,12.492967,136.08,135.99,47.0124]
[1642596625360,0.25,136.07,135.99,47.0124]
[1642596625544,12.492967,136.08,135.99,47.0124]
[1642596625745,1.462867,136.08,136.0,11.0295]
[1642596625948,1.462867,136.08,136.0,21.5695]
[1642596626568,1.462867,136.08,136.01,0.25]
[1642596627169,0.25,136.07,135.99,58.0428]
[1642596627370,0.25,136.07,135.99,11.0304]
[1642596627669,0.25,136.07,136.0,0.25]
[1642596628069,1.462867,136.08,136.0,0.25]
[1642596628271,0.25,136.07,136.0,0.25]
[1642596628474,15.11713715,136.07,135.99,11.0304]
[1642596628672,15.11713715,136.07,135.98,11.0311]
[1642596629773,15.11713715,136.07,135.99,0.25]
[1642596634174,14.86713715,136.07,135.99,0.25]
[1642596634378,3.83623715,136.07,135.99,11.2802]
[1642596634579,3.83623715,136.07,136.0,43.95539063]
[1642596634778,3.83623715,136.07,136.0,44.20539063]
[1642596635580,1.462867,136.08,136.0,0.25]
[1642596635779,1.462867,136.08,135.99,0.25]
[1642596635982,12.492867,136.08,135.99,0.25]
[1642596636185,0.25,136.07,135.99,0.25]
[1642596637085,11.2813,136.07,135.98,11.0306]
[1642596637483,11.2813,136.07,135.96,24.532]
[1642596638585,11.2813,136.07,135.97,0.25]
[1642596638985,24.2037,136.06,135.97,0.25]
[1642596639185,37.52114729,136.05,135.97,0.25]
[1642596640587,37.52114729,136.05,135.97,11.2818]
[1642596641186,37.52114729,136.05,135.98,38.97994627]
[1642596641687,0.25,136.05,135.99,0.25]
[1642596642588,40.85085654,136.05,135.99,0.25]
[1642596642788,40.85085654,136.05,135.97,11.0318]
[1642596643487,40.85085654,136.05,135.98,0.25]
[1642596644288,0.25,136.05,135.98,0.25]
[1642596644488,0.25,136.05,135.98,11.281]
[1642596644689,24.2037,136.06,135.99,0.25]
[1642596645191,24.2037,136.06,135.98,10.54]
[1642596645395,24.2037,136.06,135.96,24.532]
[1642596645594,24.2037,136.06,135.97,0.25]
[1642596645993,0.25,136.05,135.97,0.25]
[1642596646190,40.26056208,136.03,135.97,0.25]
[1642596648197,0.25,136.02,135.95,11.0329]
[1642596648397,0.25,136.02,135.93,11.0345]
[1642596648593,0.25,136.02,135.92,23.2651]
[1642596649197,73.36,136.01,135.91,10.54]
[1642596649395,12.53187583,136.0,135.91,21.5762]
[1642596649594,12.78187583,136.0,135.92,0.25]
[1642596650395,12.78187583,136.0,135.92,35.61559788]
[1642596650595,1.74527583,136.0,135.92,46.65159788]
[1642596650795,1.74527583,136.0,135.92,11.286]
[1642596651197,1.74527583,136.0,135.92,11.036]
[1642596651999,1.74527583,136.0,135.91,10.54]
[1642596652198,1.74527583,136.0,135.91,21.5768]
[1642596652199,86.14187583,136.0,135.91,21.5768]
[1642596652601,12.78187583,136.0,135.92,0.25]
[1642596653700,110.39567583,136.0,135.92,0.25]
[1642596654102,37.03567583,136.0,135.92,0.25]
[1642596654405,25.99907583,136.0,135.92,11.2859]
[1642596654601,24.2538,136.0,135.92,11.2859]
[1642596654801,25.21517735,136.03,135.93,10.54]
[1642596655200,25.21517735,136.03,135.94,0.25]
[1642596655401,25.21517735,136.03,135.94,10.79]
[1642596655602,25.21517735,136.03,135.95,35.60166114]
[1642596656503,1.42897735,136.03,135.96,0.25]
[1642596657004,1.42897735,136.03,135.97,10.54]
[1642596657204,1.42897735,136.03,135.98,0.25]
[1642596658906,1.42897735,136.03,135.98,41.45361086]
[1642596661335,1.42897735,136.03,135.98,52.48451086]
[1642596661735,1.42897735,136.03,135.99,10.54]
[1642596662338,1.42897735,136.03,136.0,0.25]
[1642596662534,1.42897735,136.03,135.99,10.54]